[Event "Titled Tuesday Blitz July 11 Late 2023"]
[White "Srdanovic, Jovana"]
[Black "Tsukerman, Julia"]
[WhiteFideId "954810"]
[BlackFideId "2621649"]
[WhiteElo "2433"]
[BlackElo "2091"]
[Result "1-0"]
[Round "4"]
[TimeControl "180+2"]
[Date "2023.07.11"]
[WhiteClock "0:00:20"]
[BlackClock "0:00:00"]
[Board "154"]

1. d4 {[%clk 0:03:00]}  d5 {[%clk 0:02:59]} 2. c4 {[%clk 0:02:59]}  e6 {[%clk 0:02:59]} 3. Nc3 {[%clk 0:02:59]}  Be7 {[%clk 0:02:58]} 4. Nf3 {[%clk 0:02:59]}  Nf6 {[%clk 0:02:58]} 5. Bg5 {[%clk 0:02:59]}  O-O {[%clk 0:02:56]} 6. e3 {[%clk 0:02:59]}  b6 {[%clk 0:02:52]} 7. Bxf6 {[%clk 0:02:54]}  Bxf6 {[%clk 0:02:51]} 8. Qb3 {[%clk 0:02:53]}  Bb7 {[%clk 0:02:51]} 9. cxd5 {[%clk 0:02:53]}  exd5 {[%clk 0:02:51]} 10. Rd1 {[%clk 0:02:52]}  Re8 {[%clk 0:02:41]} 11. Be2 {[%clk 0:02:52]}  c6 {[%clk 0:02:35]} 12. O-O {[%clk 0:02:52]}  Nd7 {[%clk 0:02:33]} 13. Rfe1 {[%clk 0:02:49]}  Nf8 {[%clk 0:02:30]} 14. a4 {[%clk 0:02:29]}  a5 {[%clk 0:02:25]} 15. h3 {[%clk 0:02:26]}  g6 {[%clk 0:02:23]} 16. Nh2 {[%clk 0:02:23]}  Nd7 {[%clk 0:02:20]} 17. Nf1 {[%clk 0:02:19]}  Bg7 {[%clk 0:02:17]} 18. f3 {[%clk 0:02:20]}  Nf6 {[%clk 0:02:03]} 19. e4 {[%clk 0:02:06]}  dxe4 {[%clk 0:01:59]} 20. Bc4 {[%clk 0:02:06]}  Rf8 {[%clk 0:01:34]} 21. fxe4 {[%clk 0:02:05]}  Ba6 {[%clk 0:01:14]} 22. Ne3 {[%clk 0:01:55]}  Qc7 {[%clk 0:01:02]} 23. Bxa6 {[%clk 0:01:43]}  Rxa6 {[%clk 0:01:01]} 24. d5 {[%clk 0:01:43]}  cxd5 {[%clk 0:00:56]} 25. exd5 {[%clk 0:01:44]}  Qc5 {[%clk 0:00:47]} 26. d6 {[%clk 0:01:29]}  Bh6 {[%clk 0:00:42]} 27. Nd5 {[%clk 0:01:05]}  Nd7 {[%clk 0:00:31]} 28. Ne7+ {[%clk 0:01:02]}  Kh8 {[%clk 0:00:26]} 29. Kh1 {[%clk 0:00:59]}  Raa8 {[%clk 0:00:19]} 30. Rd5 {[%clk 0:00:55]}  Qb4 {[%clk 0:00:13]} 31. Qxb4 {[%clk 0:00:35]}  axb4 {[%clk 0:00:12]} 32. Rb5 {[%clk 0:00:34]}  Rxa4 {[%clk 0:00:11]} 33. Nc4 {[%clk 0:00:35]}  Ra6 {[%clk 0:00:08]} 34. Nc6 {[%clk 0:00:23]}  Bf4 {[%clk 0:00:06]} 35. Nxb4 {[%clk 0:00:22]}  Ra4 {[%clk 0:00:04]} 36. b3 {[%clk 0:00:20]}  Raa8 {[%clk 0:00:00]} 37. Nd5 {[%clk 0:00:20]} 1-0


[Site "https://www.chess.com"]

[Event "Titled Tuesday Blitz July 11 Late 2023"]
[White "Pein, Jonathan"]
[Black "Djordjevic, Dejan N"]
[WhiteFideId "417092"]
[BlackFideId "913316"]
[WhiteElo "2431"]
[BlackElo "2087"]
[Result "1-0"]
[Round "4"]
[TimeControl "180+2"]
[Date "2023.07.11"]
[WhiteClock "0:01:00"]
[BlackClock "0:00:15"]
[Board "155"]

1. e4 {[%clk 0:02:59]}  c5 {[%clk 0:02:59]} 2. Nf3 {[%clk 0:02:58]}  Nc6 {[%clk 0:02:58]} 3. d4 {[%clk 0:02:55]}  cxd4 {[%clk 0:02:58]} 4. Nxd4 {[%clk 0:02:56]}  Nf6 {[%clk 0:02:58]} 5. Nc3 {[%clk 0:02:55]}  Qb6 {[%clk 0:02:58]} 6. Ndb5 {[%clk 0:02:48]}  a6 {[%clk 0:02:48]} 7. Na3 {[%clk 0:02:41]}  Qc7 {[%clk 0:02:47]} 8. Be2 {[%clk 0:02:37]}  b5 {[%clk 0:02:47]} 9. Nd5 {[%clk 0:02:38]}  Qe5 {[%clk 0:02:27]} 10. O-O {[%clk 0:02:20]}  Nxd5 {[%clk 0:02:09]} 11. exd5 {[%clk 0:02:21]}  Nd8 {[%clk 0:01:59]} 12. Re1 {[%clk 0:02:09]}  Qb8 {[%clk 0:01:56]} 13. d6 {[%clk 0:02:02]}  e6 {[%clk 0:01:55]} 14. Bf4 {[%clk 0:01:59]}  Nb7 {[%clk 0:01:55]} 15. Bf3 {[%clk 0:01:49]}  Na5 {[%clk 0:01:46]} 16. Bxa8 {[%clk 0:01:47]}  Qxa8 {[%clk 0:01:46]} 17. c4 {[%clk 0:01:39]}  b4 {[%clk 0:01:43]} 18. Qa4 {[%clk 0:01:22]}  Nc6 {[%clk 0:01:26]} 19. Nb5 {[%clk 0:01:16]}  Qb7 {[%clk 0:01:04]} 20. Nc7+ {[%clk 0:01:15]}  Kd8 {[%clk 0:01:04]} 21. c5 {[%clk 0:01:13]}  f6 {[%clk 0:00:58]} 22. Rad1 {[%clk 0:01:02]}  h5 {[%clk 0:00:55]} 23. Qc2 {[%clk 0:01:01]}  Ne7 {[%clk 0:00:17]} 24. dxe7+ {[%clk 0:01:00]}  Bxe7 {[%clk 0:00:16]} 25. Nxe6+ {[%clk 0:01:01]}  Ke8 {[%clk 0:00:15]} 26. Qg6# {[%clk 0:01:00]} 1-0


[Site "https://www.chess.com"]

[Event "Titled Tuesday Blitz July 11 Late 2023"]
[White "Mikhalsky, Vladimir"]
[Black "Upper, John"]
[WhiteFideId "14144352"]
[BlackFideId "2606437"]
[WhiteElo "2423"]
[BlackElo "1995"]
[Result "0-1"]
[Round "4"]
[TimeControl "180+2"]
[Date "2023.07.11"]
[WhiteClock "0:01:24"]
[BlackClock "0:00:43"]
[Board "158"]

1. d4 {[%clk 0:02:55]}  Nf6 {[%clk 0:02:59]} 2. c4 {[%clk 0:02:55]}  e6 {[%clk 0:02:59]} 3. g3 {[%clk 0:02:55]}  d5 {[%clk 0:02:59]} 4. Bg2 {[%clk 0:02:55]}  Bb4+ {[%clk 0:02:59]} 5. Bd2 {[%clk 0:02:54]}  Be7 {[%clk 0:02:59]} 6. Nf3 {[%clk 0:02:53]}  O-O {[%clk 0:02:57]} 7. O-O {[%clk 0:02:52]}  c6 {[%clk 0:02:56]} 8. Qc2 {[%clk 0:02:51]}  Nbd7 {[%clk 0:02:52]} 9. a4 {[%clk 0:02:43]}  a5 {[%clk 0:02:31]} 10. Bf4 {[%clk 0:02:41]}  b6 {[%clk 0:02:16]} 11. Rd1 {[%clk 0:02:36]}  Ba6 {[%clk 0:02:10]} 12. b3 {[%clk 0:02:34]}  Rc8 {[%clk 0:01:55]} 13. Ne5 {[%clk 0:02:21]}  Nxe5 {[%clk 0:01:48]} 14. dxe5 {[%clk 0:02:19]}  Nd7 {[%clk 0:01:28]} 15. e4 {[%clk 0:02:17]}  Qc7 {[%clk 0:01:03]} 16. exd5 {[%clk 0:02:15]}  cxd5 {[%clk 0:01:01]} 17. Qd2 {[%clk 0:01:57]}  Nc5 {[%clk 0:00:44]} 18. Qxd5 {[%clk 0:01:24]}  exd5 {[%clk 0:00:43]} 0-1


[Site "https://www.chess.com"]

[Event "Titled Tuesday Blitz July 11 Late 2023"]
[White "Rodriguez Fontecha, Marcos"]
[Black "ATM622"]
[WhiteFideId "2256576"]
[WhiteElo "2419"]
[BlackElo "2540"]
[Result "0-1"]
[Round "4"]
[TimeControl "180+2"]
[Date "2023.07.11"]
[WhiteClock "0:00:04"]
[BlackClock "0:01:37"]
[Board "159"]

1. e4 {[%clk 0:03:00]}  c6 {[%clk 0:02:59]} 2. d4 {[%clk 0:02:55]}  d5 {[%clk 0:02:59]} 3. Nc3 {[%clk 0:02:56]}  dxe4 {[%clk 0:02:59]} 4. Nxe4 {[%clk 0:02:56]}  Bf5 {[%clk 0:03:00]} 5. Ng3 {[%clk 0:02:56]}  Bg6 {[%clk 0:03:00]} 6. f4 {[%clk 0:02:56]}  e6 {[%clk 0:02:59]} 7. Nf3 {[%clk 0:02:56]}  Nd7 {[%clk 0:02:59]} 8. Bc4 {[%clk 0:02:56]}  Ngf6 {[%clk 0:02:58]} 9. Qe2 {[%clk 0:02:56]}  Be7 {[%clk 0:02:57]} 10. O-O {[%clk 0:02:56]}  O-O {[%clk 0:02:57]} 11. c3 {[%clk 0:02:56]}  c5 {[%clk 0:02:57]} 12. dxc5 {[%clk 0:02:51]}  Nxc5 {[%clk 0:02:56]} 13. Kh1 {[%clk 0:02:52]}  Nce4 {[%clk 0:02:54]} 14. Nxe4 {[%clk 0:02:49]}  Nxe4 {[%clk 0:02:55]} 15. Ne5 {[%clk 0:02:47]}  Nd6 {[%clk 0:02:52]} 16. Bb3 {[%clk 0:02:46]}  Qc7 {[%clk 0:02:50]} 17. Be3 {[%clk 0:02:39]}  b6 {[%clk 0:02:35]} 18. Rfe1 {[%clk 0:02:31]}  Nf5 {[%clk 0:02:35]} 19. Bf2 {[%clk 0:02:30]}  Bc5 {[%clk 0:02:34]} 20. Bxc5 {[%clk 0:02:25]}  bxc5 {[%clk 0:02:35]} 21. Rad1 {[%clk 0:02:21]}  Qe7 {[%clk 0:02:35]} 22. Rd7 {[%clk 0:02:11]}  Qh4 {[%clk 0:02:34]} 23. Kg1 {[%clk 0:01:47]}  Qxf4 {[%clk 0:02:34]} 24. Rf1 {[%clk 0:01:37]}  Qg5 {[%clk 0:02:27]} 25. Rc7 {[%clk 0:01:27]}  Rad8 {[%clk 0:02:22]} 26. Nd7 {[%clk 0:01:20]}  Qe7 {[%clk 0:02:16]} 27. Nxf8 {[%clk 0:00:52]}  Qxc7 {[%clk 0:02:16]} 28. Nxg6 {[%clk 0:00:50]}  hxg6 {[%clk 0:02:14]} 29. Bc4 {[%clk 0:00:46]}  a5 {[%clk 0:02:09]} 30. Re1 {[%clk 0:00:44]}  a4 {[%clk 0:02:05]} 31. b3 {[%clk 0:00:41]}  axb3 {[%clk 0:02:05]} 32. axb3 {[%clk 0:00:42]}  Qf4 {[%clk 0:02:04]} 33. Qe4 {[%clk 0:00:38]}  Qd2 {[%clk 0:02:00]} 34. Qe5 {[%clk 0:00:28]}  Nh4 {[%clk 0:01:54]} 35. Qe4 {[%clk 0:00:19]}  Qxc3 {[%clk 0:01:45]} 36. h3 {[%clk 0:00:10]}  Nf5 {[%clk 0:01:43]} 37. Rf1 {[%clk 0:00:04]}  Ng3 {[%clk 0:01:37]} 0-1


[Site "https://www.chess.com"]

[Event "Titled Tuesday Blitz July 11 Late 2023"]
[White "Papayan, Oleg"]
[Black "Burke, Paul"]
[WhiteFideId "4193911"]
[BlackFideId "2605767"]
[WhiteElo "2500"]
[BlackElo "1907"]
[Result "1-0"]
[Round "4"]
[TimeControl "180+2"]
[Date "2023.07.11"]
[WhiteClock "0:00:18"]
[BlackClock "0:00:14"]
[Board "160"]

1. d4 {[%clk 0:03:00]}  a6 {[%clk 0:02:39]} 2. e4 {[%clk 0:02:57]}  d6 {[%clk 0:02:39]} 3. Bc4 {[%clk 0:02:53]}  g6 {[%clk 0:02:39]} 4. Nf3 {[%clk 0:02:52]}  h6 {[%clk 0:02:38]} 5. a4 {[%clk 0:02:52]}  e6 {[%clk 0:02:37]} 6. Nc3 {[%clk 0:02:52]}  Nd7 {[%clk 0:02:37]} 7. Bf4 {[%clk 0:02:51]}  Bg7 {[%clk 0:02:36]} 8. Qd2 {[%clk 0:02:51]}  Ne7 {[%clk 0:02:35]} 9. h4 {[%clk 0:02:51]}  Nb6 {[%clk 0:02:29]} 10. Bb3 {[%clk 0:02:50]}  d5 {[%clk 0:02:29]} 11. e5 {[%clk 0:02:44]}  Nc4 {[%clk 0:02:25]} 12. Bxc4 {[%clk 0:02:36]}  dxc4 {[%clk 0:02:25]} 13. Qe2 {[%clk 0:02:35]}  Nd5 {[%clk 0:02:22]} 14. Bd2 {[%clk 0:02:30]}  Nxc3 {[%clk 0:02:14]} 15. Bxc3 {[%clk 0:02:31]}  Qd5 {[%clk 0:02:09]} 16. h5 {[%clk 0:02:30]}  g5 {[%clk 0:02:08]} 17. O-O {[%clk 0:02:31]}  O-O {[%clk 0:02:00]} 18. Nd2 {[%clk 0:02:31]}  b5 {[%clk 0:01:56]} 19. axb5 {[%clk 0:02:06]}  axb5 {[%clk 0:01:56]} 20. Qe4 {[%clk 0:01:53]}  Bb7 {[%clk 0:01:52]} 21. Qxd5 {[%clk 0:01:52]}  Bxd5 {[%clk 0:01:50]} 22. Bb4 {[%clk 0:01:52]}  Rxa1 {[%clk 0:01:44]} 23. Rxa1 {[%clk 0:01:52]}  Ra8 {[%clk 0:01:43]} 24. Ra5 {[%clk 0:01:36]}  Rxa5 {[%clk 0:01:39]} 25. Bxa5 {[%clk 0:01:37]}  c6 {[%clk 0:01:35]} 26. f3 {[%clk 0:01:24]}  f6 {[%clk 0:01:34]} 27. exf6 {[%clk 0:01:15]}  Bxf6 {[%clk 0:01:33]} 28. c3 {[%clk 0:01:16]}  Be7 {[%clk 0:01:27]} 29. Ne4 {[%clk 0:01:04]}  Bxe4 {[%clk 0:01:12]} 30. fxe4 {[%clk 0:01:05]}  Kf7 {[%clk 0:01:06]} 31. Kf2 {[%clk 0:01:02]}  Kf6 {[%clk 0:01:03]} 32. Kf3 {[%clk 0:00:58]}  c5 {[%clk 0:00:54]} 33. g4 {[%clk 0:00:46]}  cxd4 {[%clk 0:00:52]} 34. cxd4 {[%clk 0:00:47]}  b4 {[%clk 0:00:49]} 35. Ke3 {[%clk 0:00:44]}  e5 {[%clk 0:00:42]} 36. Bc7 {[%clk 0:00:35]}  exd4+ {[%clk 0:00:39]} 37. Kxd4 {[%clk 0:00:36]}  Ke6 {[%clk 0:00:28]} 38. Kxc4 {[%clk 0:00:34]}  Bf6 {[%clk 0:00:28]} 39. b3 {[%clk 0:00:32]}  Bc3 {[%clk 0:00:25]} 40. Bg3 {[%clk 0:00:27]}  Bd2 {[%clk 0:00:23]} 41. Kd4 {[%clk 0:00:25]}  Bc3+ {[%clk 0:00:21]} 42. Kc5 {[%clk 0:00:25]}  Bd2 {[%clk 0:00:21]} 43. Kc6 {[%clk 0:00:23]}  Bc3 {[%clk 0:00:21]} 44. Kc7 {[%clk 0:00:23]}  Bd2 {[%clk 0:00:20]} 45. Kd8 {[%clk 0:00:23]}  Bc3 {[%clk 0:00:19]} 46. Ke8 {[%clk 0:00:24]}  Be5 {[%clk 0:00:18]} 47. Bxe5 {[%clk 0:00:12]}  Kxe5 {[%clk 0:00:17]} 48. Kf7 {[%clk 0:00:13]}  Kxe4 {[%clk 0:00:18]} 49. Kg6 {[%clk 0:00:14]}  Kf4 {[%clk 0:00:18]} 50. Kxh6 {[%clk 0:00:15]}  Kxg4 {[%clk 0:00:18]} 51. Kg6 {[%clk 0:00:16]}  Kf4 {[%clk 0:00:17]} 52. h6 {[%clk 0:00:16]}  g4 {[%clk 0:00:18]} 53. h7 {[%clk 0:00:17]}  g3 {[%clk 0:00:18]} 54. h8=Q {[%clk 0:00:18]}  g2 {[%clk 0:00:19]} 55. Qh2+ {[%clk 0:00:18]}  Kf3 {[%clk 0:00:14]} 56. Qg1 {[%clk 0:00:18]} 1-0


[Site "https://www.chess.com"]

[Event "Titled Tuesday Blitz July 11 Late 2023"]
[White "Bogaudinov, Rushan"]
[Black "Al Mukhaini, Shima"]
[WhiteFideId "4129288"]
[BlackFideId "22005854"]
[WhiteElo "2357"]
[BlackElo "2299"]
[Result "1/2-1/2"]
[Round "4"]
[TimeControl "180+2"]
[Date "2023.07.11"]
[WhiteClock "0:00:15"]
[BlackClock "0:00:18"]
[Board "163"]

1. a3 {[%clk 0:02:59]}  e5 {[%clk 0:02:55]} 2. b4 {[%clk 0:02:59]}  d6 {[%clk 0:02:55]} 3. Bb2 {[%clk 0:02:59]}  g6 {[%clk 0:02:56]} 4. h4 {[%clk 0:02:58]}  h5 {[%clk 0:02:55]} 5. e3 {[%clk 0:02:57]}  a5 {[%clk 0:02:52]} 6. c4 {[%clk 0:02:55]}  axb4 {[%clk 0:02:49]} 7. axb4 {[%clk 0:02:56]}  Rxa1 {[%clk 0:02:50]} 8. Bxa1 {[%clk 0:02:57]}  Be6 {[%clk 0:02:47]} 9. Qa4+ {[%clk 0:02:56]}  Nd7 {[%clk 0:02:46]} 10. Nf3 {[%clk 0:02:53]}  f6 {[%clk 0:02:44]} 11. d4 {[%clk 0:02:52]}  Nh6 {[%clk 0:02:42]} 12. Bd3 {[%clk 0:02:40]}  Nf5 {[%clk 0:02:37]} 13. Nc3 {[%clk 0:02:28]}  Bg7 {[%clk 0:02:36]} 14. O-O {[%clk 0:02:17]}  O-O {[%clk 0:02:36]} 15. d5 {[%clk 0:02:15]}  Bf7 {[%clk 0:02:35]} 16. e4 {[%clk 0:02:14]}  Ne7 {[%clk 0:02:30]} 17. Bb2 {[%clk 0:02:11]}  Bh6 {[%clk 0:02:28]} 18. Qa7 {[%clk 0:02:08]}  Qa8 {[%clk 0:02:11]} 19. Ra1 {[%clk 0:02:06]}  Qxa7 {[%clk 0:02:11]} 20. Rxa7 {[%clk 0:02:06]}  Rb8 {[%clk 0:02:10]} 21. Nb5 {[%clk 0:02:04]}  Nc8 {[%clk 0:02:07]} 22. Ra1 {[%clk 0:02:01]}  c6 {[%clk 0:02:07]} 23. Nc7 {[%clk 0:01:52]}  Bf8 {[%clk 0:01:58]} 24. Nd2 {[%clk 0:01:42]}  Be7 {[%clk 0:01:58]} 25. Nb3 {[%clk 0:01:34]}  Bd8 {[%clk 0:01:57]} 26. Ne6 {[%clk 0:01:25]}  Bxe6 {[%clk 0:01:48]} 27. dxe6 {[%clk 0:01:26]}  Nf8 {[%clk 0:01:49]} 28. c5 {[%clk 0:01:25]}  d5 {[%clk 0:01:40]} 29. Na5 {[%clk 0:01:20]}  dxe4 {[%clk 0:01:32]} 30. Bxe4 {[%clk 0:01:19]}  Ne7 {[%clk 0:01:29]} 31. Rd1 {[%clk 0:01:16]}  Bxa5 {[%clk 0:01:09]} 32. bxa5 {[%clk 0:01:15]}  Nxe6 {[%clk 0:01:07]} 33. Rd7 {[%clk 0:01:12]}  Nxc5 {[%clk 0:01:05]} 34. Rxe7 {[%clk 0:01:06]}  Nxe4 {[%clk 0:01:06]} 35. f3 {[%clk 0:01:00]}  Nd6 {[%clk 0:01:04]} 36. Re6 {[%clk 0:00:56]}  Ne8 {[%clk 0:01:01]} 37. Ba3 {[%clk 0:00:53]}  Ra8 {[%clk 0:00:54]} 38. Bb4 {[%clk 0:00:52]}  Nc7 {[%clk 0:00:50]} 39. Rd6 {[%clk 0:00:40]}  Nd5 {[%clk 0:00:46]} 40. Bd2 {[%clk 0:00:39]}  Re8 {[%clk 0:00:44]} 41. Kf2 {[%clk 0:00:32]}  Kf7 {[%clk 0:00:41]} 42. Rd7+ {[%clk 0:00:27]}  Re7 {[%clk 0:00:41]} 43. Rd8 {[%clk 0:00:28]}  Ke6 {[%clk 0:00:39]} 44. Rg8 {[%clk 0:00:27]}  Kf7 {[%clk 0:00:35]} 45. Rd8 {[%clk 0:00:26]}  Rc7 {[%clk 0:00:28]} 46. g4 {[%clk 0:00:24]}  hxg4 {[%clk 0:00:20]} 47. fxg4 {[%clk 0:00:24]}  Re7 {[%clk 0:00:19]} 48. h5 {[%clk 0:00:24]}  gxh5 {[%clk 0:00:20]} 49. gxh5 {[%clk 0:00:24]}  f5 {[%clk 0:00:19]} 50. Bg5 {[%clk 0:00:23]}  Rc7 {[%clk 0:00:19]} 51. Rd6 {[%clk 0:00:19]}  f4 {[%clk 0:00:18]} 52. h6 {[%clk 0:00:18]}  Kg8 {[%clk 0:00:18]} 53. Rg6+ {[%clk 0:00:17]}  Kh7 {[%clk 0:00:18]} 54. Re6 {[%clk 0:00:18]}  Ne3 {[%clk 0:00:13]} 55. Kf3 {[%clk 0:00:16]}  Nc4 {[%clk 0:00:13]} 56. Ke4 {[%clk 0:00:15]}  Rf7 {[%clk 0:00:13]} 57. Bf6 {[%clk 0:00:13]}  Kxh6 {[%clk 0:00:10]} 58. Bxe5+ {[%clk 0:00:13]}  Kg5 {[%clk 0:00:10]} 59. Bd4 {[%clk 0:00:11]}  f3 {[%clk 0:00:10]} 60. Bf2 {[%clk 0:00:11]}  Nxa5 {[%clk 0:00:09]} 61. Re5+ {[%clk 0:00:11]}  Kg4 {[%clk 0:00:09]} 62. Rxa5 {[%clk 0:00:11]}  Re7+ {[%clk 0:00:10]} 63. Kd3 {[%clk 0:00:11]}  Re2 {[%clk 0:00:10]} 64. Be3 {[%clk 0:00:10]}  Rb2 {[%clk 0:00:09]} 65. Ra1 {[%clk 0:00:07]}  f2 {[%clk 0:00:09]} 66. Rf1 {[%clk 0:00:06]}  Kf3 {[%clk 0:00:09]} 67. Bxf2 {[%clk 0:00:05]}  Rxf2 {[%clk 0:00:09]} 68. Rb1 {[%clk 0:00:06]}  b5 {[%clk 0:00:07]} 69. Rc1 {[%clk 0:00:07]}  Rb2 {[%clk 0:00:07]} 70. Rxc6 {[%clk 0:00:07]}  Kf4 {[%clk 0:00:07]} 71. Kd4 {[%clk 0:00:06]}  Kf5 {[%clk 0:00:07]} 72. Kc5 {[%clk 0:00:05]}  Ke5 {[%clk 0:00:08]} 73. Rb6 {[%clk 0:00:05]}  Rc2+ {[%clk 0:00:08]} 74. Kxb5 {[%clk 0:00:05]}  Kd5 {[%clk 0:00:09]} 75. Ka6 {[%clk 0:00:06]}  Kc5 {[%clk 0:00:08]} 76. Kb7 {[%clk 0:00:05]}  Rh2 {[%clk 0:00:08]} 77. Rc6+ {[%clk 0:00:05]}  Kb5 {[%clk 0:00:09]} 78. Rc1 {[%clk 0:00:05]}  Rh7+ {[%clk 0:00:08]} 79. Kc8 {[%clk 0:00:06]}  Kb6 {[%clk 0:00:08]} 80. Kd8 {[%clk 0:00:06]}  Rg7 {[%clk 0:00:08]} 81. Ke8 {[%clk 0:00:07]}  Ra7 {[%clk 0:00:07]} 82. Kd8 {[%clk 0:00:07]}  Rg7 {[%clk 0:00:07]} 83. Ke8 {[%clk 0:00:07]}  Kb5 {[%clk 0:00:08]} 84. Kd8 {[%clk 0:00:07]}  Kb4 {[%clk 0:00:08]} 85. Ke8 {[%clk 0:00:08]}  Kb3 {[%clk 0:00:08]} 86. Rd1 {[%clk 0:00:08]}  Kc2 {[%clk 0:00:09]} 87. Rd7 {[%clk 0:00:08]}  Rg6 {[%clk 0:00:09]} 88. Kf7 {[%clk 0:00:08]}  Rh6 {[%clk 0:00:09]} 89. Re7 {[%clk 0:00:07]}  Kd3 {[%clk 0:00:09]} 90. Kg7 {[%clk 0:00:08]}  Ra6 {[%clk 0:00:08]} 91. Kf7 {[%clk 0:00:08]}  Kd4 {[%clk 0:00:09]} 92. Re6 {[%clk 0:00:08]}  Ra7+ {[%clk 0:00:09]} 93. Kf6 {[%clk 0:00:09]}  Ra8 {[%clk 0:00:10]} 94. Rb6 {[%clk 0:00:08]}  Kd5 {[%clk 0:00:10]} 95. Kg6 {[%clk 0:00:08]}  Rf8 {[%clk 0:00:10]} 96. Rf6 {[%clk 0:00:08]}  Rg8+ {[%clk 0:00:10]} 97. Kf5 {[%clk 0:00:08]}  Rg1 {[%clk 0:00:11]} 98. Ra6 {[%clk 0:00:08]}  Rf1+ {[%clk 0:00:11]} 99. Kg4 {[%clk 0:00:09]}  Ke4 {[%clk 0:00:11]} 100. Ra4+ {[%clk 0:00:08]}  Ke5 {[%clk 0:00:12]} 101. Ra5+ {[%clk 0:00:09]}  Kf6 {[%clk 0:00:12]} 102. Ra6+ {[%clk 0:00:09]}  Kg7 {[%clk 0:00:13]} 103. Ra7+ {[%clk 0:00:09]}  Kg6 {[%clk 0:00:13]} 104. Ra6+ {[%clk 0:00:09]}  Kf7 {[%clk 0:00:14]} 105. Ra7+ {[%clk 0:00:10]}  Ke6 {[%clk 0:00:15]} 106. Ra6+ {[%clk 0:00:10]}  Kd7 {[%clk 0:00:16]} 107. Ra7+ {[%clk 0:00:10]}  Kc6 {[%clk 0:00:16]} 108. Ra4 {[%clk 0:00:11]}  Kb5 {[%clk 0:00:16]} 109. Rf4 {[%clk 0:00:11]}  Rg1+ {[%clk 0:00:16]} 110. Kf5 {[%clk 0:00:11]}  Rg8 {[%clk 0:00:17]} 111. Ke5 {[%clk 0:00:11]}  Re8+ {[%clk 0:00:18]} 112. Kf5 {[%clk 0:00:12]}  Kc5 {[%clk 0:00:18]} 113. Kg4 {[%clk 0:00:12]}  Kd5 {[%clk 0:00:18]} 114. Kf3 {[%clk 0:00:13]}  Re1 {[%clk 0:00:17]} 115. Kf2 {[%clk 0:00:13]}  Ra1 {[%clk 0:00:17]} 116. Rf3 {[%clk 0:00:12]}  Ke4 {[%clk 0:00:17]} 117. Re3+ {[%clk 0:00:13]}  Kf4 {[%clk 0:00:17]} 118. Rf3+ {[%clk 0:00:13]}  Kg4 {[%clk 0:00:18]} 119. Rg3+ {[%clk 0:00:14]}  Kf4 {[%clk 0:00:18]} 120. Rf3+ {[%clk 0:00:14]}  Ke4 {[%clk 0:00:19]} 121. Re3+ {[%clk 0:00:15]}  Kd4 {[%clk 0:00:19]} 122. Rf3 {[%clk 0:00:14]}  Ra2+ {[%clk 0:00:18]} 123. Kg3 {[%clk 0:00:15]}  Ke4 {[%clk 0:00:18]} 124. Rf4+ {[%clk 0:00:15]} 1/2-1/2


[Site "https://www.chess.com"]

[Event "Titled Tuesday Blitz July 11 Late 2023"]
[White "Garmendiarov"]
[Black "Khouri, Ahmed Abbas"]
[BlackFideId "9301518"]
[WhiteElo "2348"]
[BlackElo "2142"]
[Result "1/2-1/2"]
[Round "4"]
[TimeControl "180+2"]
[Date "2023.07.11"]
[WhiteClock "0:00:06"]
[BlackClock "0:00:05"]
[Board "164"]

1. e4 {[%clk 0:03:00]}  d5 {[%clk 0:02:59]} 2. exd5 {[%clk 0:03:01]}  Qxd5 {[%clk 0:03:00]} 3. Nc3 {[%clk 0:03:02]}  Qd6 {[%clk 0:03:01]} 4. d4 {[%clk 0:03:02]}  Nf6 {[%clk 0:03:01]} 5. Nf3 {[%clk 0:03:03]}  Bg4 {[%clk 0:03:02]} 6. Be2 {[%clk 0:03:01]}  Nbd7 {[%clk 0:03:02]} 7. O-O {[%clk 0:02:54]}  c6 {[%clk 0:03:02]} 8. h3 {[%clk 0:02:54]}  Bh5 {[%clk 0:03:02]} 9. Re1 {[%clk 0:02:50]}  e6 {[%clk 0:03:02]} 10. Bg5 {[%clk 0:02:42]}  Be7 {[%clk 0:03:02]} 11. Qd2 {[%clk 0:02:38]}  O-O {[%clk 0:03:02]} 12. Bf4 {[%clk 0:02:33]}  Qb4 {[%clk 0:03:01]} 13. a3 {[%clk 0:02:29]}  Qa5 {[%clk 0:03:01]} 14. b4 {[%clk 0:02:27]}  Qd8 {[%clk 0:03:02]} 15. Rab1 {[%clk 0:02:01]}  a5 {[%clk 0:02:51]} 16. bxa5 {[%clk 0:01:51]}  Bxa3 {[%clk 0:02:44]} 17. Rxb7 {[%clk 0:01:46]}  Rxa5 {[%clk 0:02:32]} 18. Nb1 {[%clk 0:01:36]}  Be7 {[%clk 0:01:37]} 19. Nc3 {[%clk 0:00:53]}  Qa8 {[%clk 0:01:24]} 20. Reb1 {[%clk 0:00:48]}  Rd8 {[%clk 0:01:16]} 21. Bc7 {[%clk 0:00:47]}  Rc8 {[%clk 0:00:46]} 22. Bxa5 {[%clk 0:00:45]}  Qxa5 {[%clk 0:00:47]} 23. g4 {[%clk 0:00:38]}  Bg6 {[%clk 0:00:47]} 24. g5 {[%clk 0:00:36]}  Nd5 {[%clk 0:00:26]} 25. Rxd7 {[%clk 0:00:22]}  Qxc3 {[%clk 0:00:13]} 26. Qxc3 {[%clk 0:00:13]}  Nxc3 {[%clk 0:00:13]} 27. Rbb7 {[%clk 0:00:10]}  Nxe2+ {[%clk 0:00:10]} 28. Kf1 {[%clk 0:00:11]}  Nxd4 {[%clk 0:00:08]} 29. Nxd4 {[%clk 0:00:10]}  Bf8 {[%clk 0:00:08]} 30. Nf3 {[%clk 0:00:08]}  Bxc2 {[%clk 0:00:08]} 31. Ne5 {[%clk 0:00:08]}  c5 {[%clk 0:00:04]} 32. Nxf7 {[%clk 0:00:06]}  c4 {[%clk 0:00:05]} 33. Rbc7 {[%clk 0:00:05]}  Bd3+ {[%clk 0:00:03]} 34. Ke1 {[%clk 0:00:03]}  Rb8 {[%clk 0:00:04]} 35. Rb7 {[%clk 0:00:03]}  Ra8 {[%clk 0:00:04]} 36. Ra7 {[%clk 0:00:04]}  Rb8 {[%clk 0:00:05]} 37. Rdb7 {[%clk 0:00:04]}  Rc8 {[%clk 0:00:05]} 38. Ne5 {[%clk 0:00:04]}  c3 {[%clk 0:00:03]} 39. Nxd3 {[%clk 0:00:04]}  c2 {[%clk 0:00:04]} 40. Nc1 {[%clk 0:00:05]}  Bd6 {[%clk 0:00:03]} 41. Rd7 {[%clk 0:00:04]}  Bf4 {[%clk 0:00:04]} 42. Rac7 {[%clk 0:00:03]}  Rxc7 {[%clk 0:00:03]} 43. Rxc7 {[%clk 0:00:04]}  Bxc7 {[%clk 0:00:04]} 44. Kd2 {[%clk 0:00:05]}  Kf7 {[%clk 0:00:05]} 45. Kxc2 {[%clk 0:00:05]}  Kg6 {[%clk 0:00:06]} 46. h4 {[%clk 0:00:05]}  Kh5 {[%clk 0:00:06]} 47. Nd3 {[%clk 0:00:05]}  Kxh4 {[%clk 0:00:07]} 48. Nc5 {[%clk 0:00:06]}  Be5 {[%clk 0:00:04]} 49. Nxe6 {[%clk 0:00:06]}  Kg4 {[%clk 0:00:05]} 50. Kd3 {[%clk 0:00:06]}  Kf5 {[%clk 0:00:05]} 51. Nf8 {[%clk 0:00:05]}  Kxg5 {[%clk 0:00:03]} 52. Nxh7+ {[%clk 0:00:06]}  Kh6 {[%clk 0:00:02]} 53. Nf8 {[%clk 0:00:06]}  g5 {[%clk 0:00:02]} 54. Ke4 {[%clk 0:00:05]}  Bf4 {[%clk 0:00:03]} 55. Kf5 {[%clk 0:00:05]}  Kh5 {[%clk 0:00:03]} 56. Ne6 {[%clk 0:00:05]}  Bd2 {[%clk 0:00:04]} 57. f3 {[%clk 0:00:05]}  Kh4 {[%clk 0:00:04]} 58. Nf8 {[%clk 0:00:03]}  Kg3 {[%clk 0:00:04]} 59. Ke4 {[%clk 0:00:03]}  Kh4 {[%clk 0:00:04]} 60. Ng6+ {[%clk 0:00:03]}  Kh5 {[%clk 0:00:04]} 61. Ne5 {[%clk 0:00:04]}  Kh6 {[%clk 0:00:04]} 62. Ng4+ {[%clk 0:00:04]}  Kh5 {[%clk 0:00:04]} 63. Ne5 {[%clk 0:00:05]}  Kh4 {[%clk 0:00:04]} 64. Ng6+ {[%clk 0:00:05]}  Kg3 {[%clk 0:00:04]} 65. Ne7 {[%clk 0:00:05]}  Bf4 {[%clk 0:00:04]} 66. Nf5+ {[%clk 0:00:06]}  Kf2 {[%clk 0:00:04]} 67. Nh6 {[%clk 0:00:06]}  Kg3 {[%clk 0:00:04]} 68. Nf7 {[%clk 0:00:06]}  Kf2 {[%clk 0:00:04]} 69. Nh6 {[%clk 0:00:05]}  Kg3 {[%clk 0:00:04]} 70. Nf5+ {[%clk 0:00:05]}  Kf2 {[%clk 0:00:05]} 71. Nh6 {[%clk 0:00:06]} 1/2-1/2


[Site "https://www.chess.com"]